Cogmind - Beta 10.2 @@@ ROGUE MODE // 2021.05.07 @ 18:55:08 Player: ChromeKnight Result: Destroyed by H-88 Terminator with KE Penetrator Performance ------------- Evolutions (9) 4500 Regions Visited (23) 4600 Robots Destroyed (47) 235 Value Destroyed (1265) 1265 Prototype IDs (48) 960 Alien Tech Used (4) 800 Bonus (1578) 1578 TOTAL SCORE: 13938 Bonus ------- Triggered Max Security 1000 High Alert Combat Kills 324 Follower Combat Kills 88 Aligned with FarCom 300 Met Warlord at Base 500 MAIN.C Attacked Warlord 500 Friendly Fire -1134 Cogmind --------- Core Integrity 0/1600 Matter 257/300 Energy 97/100 System Corruption 1% Temperature Cool (9) Movement Core (50) Location -1/Command Parts ------- > --- POWER (1) -------- (None) > --- PROPULSION (2) --- (None) > --- UTILITY (20) ----- Advanced Visual Processing Unit Experimental Signal Interpreter Advanced Armor Integrity Analyzer Advanced Hacking Suite System Shield > --- WEAPON (2) ------- (None) > --- INVENTORY (4) ---- (None) Peak State ------------ > --- POWER ------------ Graviton Reactor > --- PROPULSION ------- Impulse Thruster Array > --- UTILITY ---------- Superbattery Advanced Weight Redist. System Advanced Visual Processing Unit Improved Signal Interpreter Advanced Targeting Computer Advanced Targeting Computer Advanced Transmission Jammer Maneuvering Thrusters Makeshift Cloaking Device Improved Hacking Suite Improved Hacking Suite Improved Hacking Suite System Shield System Shield Advanced System Shield Improved System Backup Module > --- WEAPON ----------- Core Stripper > --- INVENTORY -------- Field Propulsion Drive Transdimensional Reconstructor Vortex Rifle Signal Generator [Rating: 127] Favorites ----------- Power Micro Fission Core Engine Light Ion Engine Power Core Micro Fission Core Reactor Light Quantum Reactor Propulsion Improved Cesium-ion Thruster Leg Aluminum Leg Hover Unit Antigrav Array Flight Unit Improved Cesium-ion Thruster Utility Improved Hacking Suite Device Improved System Backup Module Storage Superbattery Processor Improved Signal Interpreter Hackware Improved Hacking Suite Protection Utility Shielding Weapon Light Cannon Energy Gun Improved Arc Thrower Energy Cannon Disruptor Cannon Ballistic Gun Heavy Battle Rifle Ballistic Cannon Light Cannon Launcher Guided Missile Launcher Special Weapon Plasma Cutter Impact Weapon Core Stripper Build | -11 -10 -10 -10 -9 -8 -7 -7 -7 -5 -5 -5 -5 -4 -4 -4 -4 -4 -3 -3 -3 -2 -1 -1 ------- Run | Scr Mat Min Exi Min Mat Fac Sto Rec Fac Upp Upp Zhi Pro Fac Upp Upp War Pro Res Qua Res Acc Com Slots Evolved 18 | . . . . . 4 2 . . 4 . . . . 2 . . . . 2 . 2 2 . Power . | . . . . . . . . . . . . . . . . . . . . . . . . Propulsion . | . . . . . . . . . . . . . . . . . . . . . . . . Utility 18 | . . . . . 4 2 . . 4 . . . . 2 . . . . 2 . 2 2 . Weapon . | . . . . . . . . . . . . . . . . . . . . . . . . Parts Attached 160 | 6 5 2 3 . 2 11 13 1 13 . 5 7 5 11 5 2 6 1 15 5 32 5 5 Power 18 | 1 2 1 . . . 1 . . 1 . . 3 . 1 . . 2 . 2 . 2 1 1 Engine 6 | 1 2 1 . . . . . . . . . . . . . . 1 . . . 1 . . Core 5 | . . . . . . 1 . . 1 . . 1 . 1 . . 1 . . . . . . Reactor 7 | . . . . . . . . . . . . 2 . . . . . . 2 . 1 1 1 Propulsion 24 | 2 . 1 . . 2 2 3 . 1 . . . 1 1 . 1 . . 4 2 3 . 1 Treads . | . . . . . . . . . . . . . . . . . . . . . . . . Leg 5 | 2 . 1 . . 2 . . . . . . . . . . . . . . . . . . Wheel . | . . . . . . . . . . . . . . . . . . . . . . . . Hover 1 | . . . . . . . . . . . . . . . . . . . . . . . 1 Flight 18 | . . . . . . 2 3 . 1 . . . 1 1 . 1 . . 4 2 3 . . Utility 69 | 1 1 . 1 . . 5 3 1 8 . 1 4 1 7 2 1 2 1 6 1 18 2 3 Device 33 | . . . . . . 2 2 . 4 . . 3 1 6 1 1 2 1 3 . 4 . 3 Storage 3 | 1 . . 1 . . . 1 . . . . . . . . . . . . . . . . Processor 15 | . . . . . . 1 . . . . 1 . . . 1 . . . 2 1 9 . . Hackware 10 | . . . . . . 1 . 1 4 . . 1 . . . . . . 1 . 2 . . Protection 8 | . 1 . . . . 1 . . . . . . . 1 . . . . . . 3 2 . Artifact . | . . . . . . . . . . . . . . . . . . . . . . . . Weapon 49 | 2 2 . 2 . . 3 7 . 3 . 4 . 3 2 3 . 2 . 3 2 9 2 . Energy Gun 6 | 1 . . . . . . . . . . 1 . . 2 1 . . . . . 1 . . Energy Cannon 1 | . . . . . . . . . . . 1 . . . . . . . . . . . . Ballistic Gun 17 | 1 . . . . . . 1 . . . . . . . 2 . 2 . 2 . 7 2 . Ballistic Cannon 10 | . 2 . 2 . . 1 . . . . . . 3 . . . . . 1 1 . . . Launcher 3 | . . . . . . . 1 . 1 . . . . . . . . . . . 1 . . Special Weapon 11 | . . . . . . 2 5 . 2 . 2 . . . . . . . . . . . . Impact Weapon 1 | . . . . . . . . . . . . . . . . . . . . 1 . . . Slashing Weapon . | . . . . . . . . . . . . . . . . . . . . . . . . Piercing Weapon . | . . . . . . . . . . . . . . . . . . . . . . . . Special Melee Weapon . | . . . . . . . . . . . . . . . . . . . . . . . . Unidentified Prototypes 18 | . . . . . . . 3 . . . . 3 . 1 . . . . 1 1 7 2 . Parts Lost 49 | . . 1 . 1 . . 1 1 1 2 2 . 2 . 1 6 . . 1 13 2 13 2 Power 3 | . . 1 . . . . . . . . . . . . . . . . . . 1 1 . Propulsion 6 | . . . . . . . . . . . . . 1 . . 1 . . . 2 1 1 . Utility 30 | . . . . 1 . . 1 . . 1 1 . 1 . . 3 . . 1 11 . 8 2 Weapon 10 | . . . . . . . . 1 1 1 1 . . . 1 2 . . . . . 3 . Highest Loss Streak 12 | . . 1 . 1 . . 1 1 1 2 2 . 2 . 1 4 . . 1 10 2 12 2 Average Slot Usage (%) 78 | . 93 100 100 85 54 65 70 90 85 82 81 83 91 78 92 81 89 94 90 81 44 64 35 Engine 3 | . 14 14 14 14 9 5 . . . . . . . . . . . . . . . . . Core 2 | . . . . . . 1 7 7 5 5 5 2 . 4 5 5 4 5 2 . . . . Leg 5 | . 28 28 28 28 18 . . . . . . . . . . . . . . . . . . Flight 5 | . . . . . . 14 14 15 11 11 11 11 11 5 5 5 5 5 5 4 3 3 . Device 12 | . . . . . . 12 9 23 16 14 9 9 14 17 21 20 23 26 28 20 1 3 8 Storage 5 | . 14 14 14 14 9 . 3 7 5 5 5 5 5 5 5 5 5 5 4 3 . . . Processor 9 | . . . . . . 5 7 7 5 5 8 11 6 5 8 10 10 10 14 18 24 34 16 Hackware 16 | . . . . . . 6 7 8 26 35 35 39 41 31 31 28 26 26 23 24 6 11 8 Protection 3 | . 7 14 14 . . 6 7 7 4 . . . . . 5 5 5 5 . . 1 . . Energy Gun 1 | . 4 . . . . . . . . . 1 . . 5 8 1 . . . . . . . Ballistic Gun 1 | . 4 . . . . . . . . . . . . . 1 . 8 10 2 . 4 7 . Ballistic Cannon 5 | . 18 28 28 28 18 1 . . . . . . 3 2 . . . . 3 2 . . . Special Weapon 1 | . . . . . . 7 11 11 5 2 2 . . . . . . . . . . . . Naked Turns . | . . . . . . . . . . . . . . . . . . . . . . . . Heaviest Build 36 | 10 18 16 20 17 17 17 18 18 22 14 16 19 26 32 32 30 23 23 36 36 30 27 20 Greatest Support 36 | 20 20 20 20 20 30 30 22 22 22 17 17 26 26 35 35 35 29 29 36 36 27 27 36 Greatest Overweight (x) 6 | 1 . . . . . . . . . . . . . . . . . . . . 4 . 6 Average Overweight (x) . | . . . . . . . . . . . . . . . . . . . . . . . . Largest Inventory Capacity 8 | 6 6 6 8 8 8 8 4 4 4 4 4 4 4 4 4 4 4 4 4 4 4 4 4 Average Capacity 4 | 5 6 6 6 8 8 4 4 4 4 4 4 4 4 4 4 4 4 4 4 4 4 4 4 Most Carried 8 | 1 6 6 6 8 8 8 4 4 4 4 4 4 4 4 4 4 4 4 4 4 4 4 1 Average Carried 4 | . 4 6 5 7 8 4 3 4 3 4 4 3 3 3 3 3 3 4 4 3 3 3 . Final Capacity 8 | 6 6 6 8 8 8 4 4 4 4 4 4 4 4 4 4 4 4 4 4 4 4 4 4 Final Carried 8 | 1 6 6 6 8 8 4 4 4 4 4 4 4 4 4 4 3 4 4 4 3 4 1 . Class Distribution -------------------- 40% | Wizard-Mutant 34% | Mutant 8% | Scavenger-Mutant 5% | Hacker-Sprinter 4% | Wizard-Sprinter 3% | Hacker-Mutant Dominant Class ---------------- Mutant | -10/Materials Mutant | -10/Mines Mutant | -10/Exiles Mutant | -9/Mines Mutant | -8/Materials Mutant | -7/Factory Sprinter | -7/Storage Infiltrator-Mutant | -7/Recycling Hacker-Sprinter | -5/Factory Wizard-Mutant | -5/Upper Caves Wizard-Mutant | -5/Upper Caves Wizard-Mutant | -5/Zhirov Wizard-Mutant | -4/Proximity Caves Wizard-Mutant | -4/Factory Wizard-Mutant | -4/Upper Caves Wizard-Mutant | -4/Upper Caves Wizard-Mutant | -4/Warlord Wizard-Mutant | -3/Proximity Caves Wizard-Mutant | -3/Research Wizard-Mutant | -3/Quarantine Mutant | -2/Research Scavenger-Mutant | -1/Access Hacker-Mutant | -1/Command Resources | -11 -10 -10 -10 -9 -8 -7 -7 -7 -5 -5 -5 -5 -4 -4 -4 -4 -4 -3 -3 -3 -2 -1 -1 ----------- Run | Scr Mat Min Exi Min Mat Fac Sto Rec Fac Upp Upp Zhi Pro Fac Upp Upp War Pro Res Qua Res Acc Com Matter Collected 2507 | 218 161 162 . 110 75 147 105 50 280 . 30 . 68 . 245 20 . 70 145 96 430 95 . Remotely . | . . . . . . . . . . . . . . . . . . . . . . . . Salvage Created 1893 | . 306 171 . 115 132 27 120 . 335 . 21 . . . 217 . . . 40 . 273 136 . Parts 89 | . 20 10 . 5 11 . 7 . 15 . 1 . . . 7 . . . 2 . 1 10 . Haulers Intercepted 4 | . 1 . . . 1 . 1 . 1 . . . . . . . . . . . . . . Recyclers Shooed 6 | . 4 1 . . . . . . 1 . . . . . . . . . . . . . . Parts Field Recycled . | . . . . . . . . . . . . . . . . . . . . . . . . Retrieved Matter . | . . . . . . . . . . . . . . . . . . . . . . . . Parts Self-Destructed 5 | . . . . . . . . . . . 1 . . . 4 . . . . . . . . Prevented 5 | . . . . . . . . . . . . . . . 3 . 2 . . . . . . Kills | -11 -10 -10 -10 -9 -8 -7 -7 -7 -5 -5 -5 -5 -4 -4 -4 -4 -4 -3 -3 -3 -2 -1 -1 ------- Run | Scr Mat Min Exi Min Mat Fac Sto Rec Fac Upp Upp Zhi Pro Fac Upp Upp War Pro Res Qua Res Acc Com Combat Hostiles Destroyed 30 | . 3 6 . 3 5 . 1 . 2 . . . . . 4 . . . . . 2 4 . Guns 13 | . 3 . . . . . . . . . . . . . 4 . . . . . 2 4 . Cannons 15 | . . 6 . 3 5 . 1 . . . . . . . . . . . . . . . . AOE 2 | . . . . . . . . . 2 . . . . . . . . . . . . . . Classes Destroyed 11 | . 4 2 . . 1 1 . . 1 . . . . . . . . . 1 . 1 . . Worker 2 | . . 1 . . . . . . 1 . . . . . . . . . . . . . . Builder 3 | . 2 . . . . . . . 1 . . . . . . . . . . . . . . Hauler 4 | . 1 . . . 1 . 1 . 1 . . . . . . . . . . . . . . Recycler 4 | . 2 1 . . . . . . 1 . . . . . . . . . . . . . . Operator 2 | . . . . . . 2 . . . . . . . . . . . . . . . . . Watcher 1 | . . . . . . . . . . . . . . . . . . . 1 . . . . Swarmer 19 | . 3 4 . . 4 . . . . . . . . . 4 . . . . . . 4 . Grunt 7 | . . 2 . 3 . . 1 . . . . . . . . . . . . . 1 . . Sentry 1 | . . . . . 1 . . . . . . . . . . . . . . . . . . Programmer 2 | . . . . . . . . . 2 . . . . . . . . . . . . . . Striker 1 | . . . . . . . . . . . . . . . . . . . . . 1 . . Packrat 1 | . . . . . . . . . . . . . . . 1 . . . . . . . . Best Kill Streak 4 | . 3 3 . 3 4 1 1 . 3 . . . . . 3 . . . 1 . 2 4 . Combat Bots Only 4 | . 2 3 . 3 4 . 1 . 2 . . . . . 3 . . . . . 2 4 . Max Kills in Single Turn 1 | . 1 1 . 1 1 1 1 . 1 . . . . . 1 . . . 1 . 1 1 . Gunslinging . | . . . . . . . . . . . . . . . . . . . . . . . . Exploded 1 | . . . . . . . . . 1 . . . . . . . . . . . . . . Melee . | . . . . . . . . . . . . . . . . . . . . . . . . Uniques/NPCs Destroyed 1 | . . . . . . . . . . . . . . . . . . . . . 1 . . God Mode (-2/Research) Combat | -11 -10 -10 -10 -9 -8 -7 -7 -7 -5 -5 -5 -5 -4 -4 -4 -4 -4 -3 -3 -3 -2 -1 -1 -------- Run | Scr Mat Min Exi Min Mat Fac Sto Rec Fac Upp Upp Zhi Pro Fac Upp Upp War Pro Res Qua Res Acc Com Damage Taken 9034 | . 184 392 . 27 234 78 125 9 272 160 347 . 277 80 135 545 120 . 152 1767 1178 1932 1020 Core 3915 | . 68 62 . 11 79 17 32 . 106 52 187 . 79 . . 109 16 . 27 1124 422 648 876 Absorbed by Shields . | . . . . . . . . . . . . . . . . . . . . . . . . Core Remaining (%) 68 | 100 . . . 43 85 . . 93 . . . . 57 . . . . 89 . 11 70 . . Volleys Fired 180 | . 27 25 . 4 14 9 10 . 20 . 9 . . . 19 1 . . 9 4 15 14 . Largest 2 | . 2 2 . 2 2 1 2 . 2 . 1 . . . 2 1 . . 2 1 2 2 . Hottest 180 | . 70 70 . 70 70 100 120 . 40 . 80 . . . 180 60 . . 66 66 76 76 . Shots Fired 312 | . 54 50 . 8 28 9 16 . 29 . 9 . . . 34 1 . . 16 4 30 24 . Gun 145 | . 42 . . . . . . . . . . . . . 34 1 . . 14 . 30 24 . Cannon 104 | . 12 50 . 8 28 . . . . . . . . . . . . . 2 4 . . . Launcher 11 | . . . . . . . . . 11 . . . . . . . . . . . . . . Special 52 | . . . . . . 9 16 . 18 . 9 . . . . . . . . . . . . Kinetic 200 | . 33 50 . 8 28 . . . . . . . . . 7 . . . 16 4 30 24 . Thermal 73 | . 21 . . . . 9 16 . 18 . 9 . . . . . . . . . . . . Explosive 11 | . . . . . . . . . 11 . . . . . . . . . . . . . . Electromagnetic 28 | . . . . . . . . . . . . . . . 27 1 . . . . . . . Robot Hit Streak 15 | . 6 5 . 4 2 4 5 . 3 . 5 . . . 15 6 . . 9 . 8 15 . Robot Miss Streak 8 | . 3 8 . 1 3 1 2 . 2 . 2 . . . 4 . . . 3 . 1 1 . Penetration Max 1 | . . . . . . . . . . . . . . . . . . . . . 1 . . Secondary Targets 2 | . 1 . . . . . . . . . . . . . 1 . . . . . . . . Max Gunslinging Chain 1 | . 1 . . . . . . . . . . . . . 1 . . . . . . . . Shots Hit Robots 173 | . 31 21 . 4 13 6 9 . 8 . 6 . . . 27 1 . . 10 . 22 15 . Core Hits 112 | . 10 9 . 3 8 4 3 . 15 . 1 . . . 28 . . . 3 . 12 16 . Critical Hits 8 | . . 1 . . . . 1 . 1 . . . . . . . . . 1 . 4 . . Critical Kills 2 | . . . . . . . 1 . 1 . . . . . . . . . . . . . . Critical Parts Destroyed 4 | . . 1 . . . . . . . . . . . . . . . . 1 . 2 . . Melee Attacks . | . . . . . . . . . . . . . . . . . . . . . . . . Impact . | . . . . . . . . . . . . . . . . . . . . . . . . Slashing . | . . . . . . . . . . . . . . . . . . . . . . . . Piercing . | . . . . . . . . . . . . . . . . . . . . . . . . Sneak Attacks . | . . . . . . . . . . . . . . . . . . . . . . . . Combat Hostiles . | . . . . . . . . . . . . . . . . . . . . . . . . Follow-up Attacks . | . . . . . . . . . . . . . . . . . . . . . . . . Damage Inflicted 3819 | . 359 419 . 104 222 203 108 . 795 . 61 . . . 322 13 . . 232 . 644 337 . Guns 1642 | . 234 . . . . . . . . . . . . . 322 13 . . 154 . 634 285 . Cannons 948 | . 125 419 . 104 222 . . . . . . . . . . . . . 78 . . . . Explosions 785 | . . . . . . 128 . . 657 . . . . . . . . . . . . . . Melee . | . . . . . . . . . . . . . . . . . . . . . . . . Ramming 77 | . . . . . . . . . 15 . . . . . . . . . . . 10 52 . Kinetic 2082 | . 172 419 . 104 222 . . . . . . . . . 14 . . . 232 . 634 285 . Thermal 554 | . 187 . . . . 75 108 . 123 . 61 . . . . . . . . . . . . Explosive 657 | . . . . . . . . . 657 . . . . . . . . . . . . . . Electromagnetic 449 | . . . . . . 128 . . . . . . . . 308 13 . . . . . . . Impact . | . . . . . . . . . . . . . . . . . . . . . . . . Slashing . | . . . . . . . . . . . . . . . . . . . . . . . . Piercing . | . . . . . . . . . . . . . . . . . . . . . . . . Highest Corruption 5 | . . . . . . 1 1 1 2 . . . . . . . . . . . . 5 5 Average Corruption 1 | . . . . . . 1 1 1 1 . . . . . . . . . . . . 4 3 Corruption Purged 6 | . . . . . . . . . 2 . . . . . . . . . . . . . 4 Effects 4 | . . . . . . . 2 . 2 . . . . . . . . . . . . . . Message Errors 2 | . . . . . . . 1 . 1 . . . . . . . . . . . . . . Energy Discharges 1 | . . . . . . . 1 . . . . . . . . . . . . . . . . Data Loss (minor) 1 | . . . . . . . . . 1 . . . . . . . . . . . . . . Overload Shots . | . . . . . . . . . . . . . . . . . . . . . . . . Overflow Damage 55 | . . 9 . . . 1 . . 26 . . . . . . . . . 19 . . . . Projectiles 28 | . . 9 . . . . . . . . . . . . . . . . 19 . . . . Explosions 27 | . . . . . . 1 . . 26 . . . . . . . . . . . . . . Melee . | . . . . . . . . . . . . . . . . . . . . . . . . Knockbacks 14 | . 2 8 . 2 . . . . . . . . . . . . . . 2 . . . . Impact . | . . . . . . . . . . . . . . . . . . . . . . . . Kinetic 14 | . 2 8 . 2 . . . . . . . . . . . . . . 2 . . . . Secondary . | . . . . . . . . . . . . . . . . . . . . . . . . Self-Inflicted Damage 88 | . . . . . . 54 . . 7 . . . . . . . . . . . 5 22 . Shots 2 | . . . . . . 2 . . . . . . . . . . . . . . . . . Rammed 22 | . . . . . . . . . 2 . . . . . . . . . . . 2 17 1 Targets Rammed 22 | . . . . . . . . . 2 . . . . . . . . . . . 2 17 1 Kicked . | . . . . . . . . . . . . . . . . . . . . . . . . Crushed . | . . . . . . . . . . . . . . . . . . . . . . . . Highest Temperature 318 | . 230 318 . 48 6 157 67 . . . 50 . . . 73 . . . . . . . . Average Temperature 68 | . 76 109 . 25 4 58 27 . . . 26 . . . 18 . . . . . . . . Received Heat Transfer 1113 | . . 135 . 15 18 9 27 . 36 9 93 . 18 9 . 36 9 . 36 222 162 135 144 Siege Activations . | . . . . . . . . . . . . . . . . . . . . . . . . Robots Corrupted 1 | . . . . . . 1 . . . . . . . . . . . . . . . . . Combat Hostiles . | . . . . . . . . . . . . . . . . . . . . . . . . Parts Fried 5 | . . . . . . 4 . . . . . . . . 1 . . . . . . . . Impact Corruptions . | . . . . . . . . . . . . . . . . . . . . . . . . Robots Melted 1 | . . . . . . . 1 . . . . . . . . . . . . . . . . Combat Hostiles . | . . . . . . . . . . . . . . . . . . . . . . . . Parts Melted 5 | . 2 . . . . . 2 . 1 . . . . . . . . . . . . . . Heat Transferred 2427 | . 555 . . . . 480 505 . 407 . 480 . . . . . . . . . . . . Parts Sabotaged 4 | . . . . . . . . . . . . . . . . . . . . 4 . . . Parts Stolen . | . . . . . . . . . . . . . . . . . . . . . . . . Parts Stripped . | . . . . . . . . . . . . . . . . . . . . . . . . Power Chain Reactions . | . . . . . . . . . . . . . . . . . . . . . . . . Missiles Intercepted . | . . . . . . . . . . . . . . . . . . . . . . . . Alert | -11 -10 -10 -10 -9 -8 -7 -7 -7 -5 -5 -5 -5 -4 -4 -4 -4 -4 -3 -3 -3 -2 -1 -1 ------- Run | Scr Mat Min Exi Min Mat Fac Sto Rec Fac Upp Upp Zhi Pro Fac Upp Upp War Pro Res Qua Res Acc Com Peak Influence 1949 | . 127 214 . 60 307 361 279 227 1633 . . . . 428 . . . . 168 1949 1350 856 528 Initial 1100 | . . 49 . . 23 139 163 114 995 . . . . 9 . . . . . 78 1100 674 508 Average 539 | . 78 119 . 59 148 187 193 146 1308 . . . . 157 . . . . 85 1675 1191 747 508 Maximum Alert Level 5 | . . 1 . . 1 1 1 1 5 . . . . 2 . . . . . 5 4 3 2 Low Security (%) 47 | 100 100 83 . 100 50 76 88 74 . . . . . 49 . . . . 100 . . . . Level 1 12 | . . 16 . . 49 23 11 25 . . . . . 49 . . . . . . . . . Level 2 5 | . . . . . . . . . . . . . . . . . . . . . . 50 100 Level 3 7 | . . . . . . . . . 32 . . . . . . . . . . . . 49 . Level 4 22 | . . . . . . . . . 67 . . . . . . . . . . . 100 . . Level 5 . | . . . . . . . . . . . . . . . . . . . . . . . . High Security . | . . . . . . . . . . . . . . . . . . . . . . . . Max Security 3 | . . . . . . . . . . . . . . . . . . . . 99 . . . Squads Dispatched 30 | . 1 . . . 2 2 2 . 3 . . . . 3 . . . . 1 13 . 3 . Investigation 3 | . 1 . . . 1 . . . . . . . . 1 . . . . . . . . . Extermination 6 | . . . . . . 1 . . 1 . . . . 2 . . . . 1 . . 1 . Reinforcement 5 | . . . . . 1 1 2 . . . . . . . . . . . . . . 1 . Assault 16 | . . . . . . . . . 2 . . . . . . . . . . 13 . 1 . Garrison . | . . . . . . . . . . . . . . . . . . . . . . . . Intercept . | . . . . . . . . . . . . . . . . . . . . . . . . Construction Impeded . | . . . . . . . . . . . . . . . . . . . . . . . . Haulers Reinforced 1 | . . . . . . . 1 . . . . . . . . . . . . . . . . Stealth | -11 -10 -10 -10 -9 -8 -7 -7 -7 -5 -5 -5 -5 -4 -4 -4 -4 -4 -3 -3 -3 -2 -1 -1 --------- Run | Scr Mat Min Exi Min Mat Fac Sto Rec Fac Upp Upp Zhi Pro Fac Upp Upp War Pro Res Qua Res Acc Com Distress Signals 19 | . 1 . . . 1 2 2 . 2 . . . . 1 . . . . 1 1 6 2 . Communications Jammed 7 | . . . . . . . . . . . . . . . . . . . . 7 . . . Distress Signals 7 | . . . . . . . . . . . . . . . . . . . . 7 . . . Times Spotted 274 | . 4 10 . 2 13 10 11 4 20 5 9 . 5 5 7 6 7 . 17 67 39 26 7 Peak Tracking Total 37 | . 3 3 . 2 5 8 8 4 6 5 5 . 4 8 4 5 6 . 6 37 7 11 7 Tactical Retreats 37 | . . 2 . . 2 1 1 . 5 . 4 . 1 1 1 2 1 . 3 2 8 3 . Traps | -11 -10 -10 -10 -9 -8 -7 -7 -7 -5 -5 -5 -5 -4 -4 -4 -4 -4 -3 -3 -3 -2 -1 -1 ------- Run | Scr Mat Min Exi Min Mat Fac Sto Rec Fac Upp Upp Zhi Pro Fac Upp Upp War Pro Res Qua Res Acc Com Traps Triggered 5 | . 2 . . . 1 . . . 2 . . . . . . . . . . . . . . Indirectly . | . . . . . . . . . . . . . . . . . . . . . . . . Trap Hack Attempts . | . . . . . . . . . . . . . . . . . . . . . . . . Triggered . | . . . . . . . . . . . . . . . . . . . . . . . . Disarmed . | . . . . . . . . . . . . . . . . . . . . . . . . Reprogrammed . | . . . . . . . . . . . . . . . . . . . . . . . . Reused . | . . . . . . . . . . . . . . . . . . . . . . . . Traps Extracted . | . . . . . . . . . . . . . . . . . . . . . . . . Installed . | . . . . . . . . . . . . . . . . . . . . . . . . Triggered 10 | . . . . . . . . . . . . . . . . . 10 . . . . . . Machines | -11 -10 -10 -10 -9 -8 -7 -7 -7 -5 -5 -5 -5 -4 -4 -4 -4 -4 -3 -3 -3 -2 -1 -1 ---------- Run | Scr Mat Min Exi Min Mat Fac Sto Rec Fac Upp Upp Zhi Pro Fac Upp Upp War Pro Res Qua Res Acc Com Machines Disabled 13 | . 2 . . . 1 5 . 3 . . . . . . . . . . . 2 . . . Max in Single Turn 2 | . 1 . . . 1 2 . . . . . . . . . . . . . 1 . . . Machines Sabotaged . | . . . . . . . . . . . . . . . . . . . . . . . . Garrisons Compromised . | . . . . . . . . . . . . . . . . . . . . . . . . Overloaded Fab Kills . | . . . . . . . . . . . . . . . . . . . . . . . . Fab Network Shutdowns 2 | . . . . . . . . . 1 . . . . 1 . . . . . . . . . Hacking | -11 -10 -10 -10 -9 -8 -7 -7 -7 -5 -5 -5 -5 -4 -4 -4 -4 -4 -3 -3 -3 -2 -1 -1 --------- Run | Scr Mat Min Exi Min Mat Fac Sto Rec Fac Upp Upp Zhi Pro Fac Upp Upp War Pro Res Qua Res Acc Com Machines Accessed 46 | . 3 . 1 . 1 4 5 . 6 . 1 7 . 2 . . 4 . 5 1 . 3 3 Terminals 28 | . 3 . . . 1 4 4 . 5 . . . . 1 . . . . 4 1 . 2 3 Fabricators 4 | . . . . . . . . . 1 . . . . 1 . . . . 1 . . 1 . Repair Stations 1 | . . . . . . . 1 . . . . . . . . . . . . . . . . Recycling Units . | . . . . . . . . . . . . . . . . . . . . . . . . Scanalyzers . | . . . . . . . . . . . . . . . . . . . . . . . . Garrison Access . | . . . . . . . . . . . . . . . . . . . . . . . . Total Hacks 151 | . 4 . 1 . 2 12 12 . 24 . 1 46 . 13 . . 10 . 10 4 . 7 5 Successful 109 | . 1 . 1 . 1 2 9 . 14 . 1 46 . 12 . . 10 . 7 2 . 1 2 Failed 41 | . 3 . . . 1 10 3 . 9 . . . . 1 . . . . 3 2 . 6 3 Catastrophic 9 | . 1 . . . . 3 . . 1 . . . . . . . . . . 1 . 1 2 Database Lockouts 1 | . . . . . . . . . 1 . . . . . . . . . . . . . . Manual 38 | . 2 . 1 . 2 6 2 . 16 . . . . 6 . . . . . . . 1 2 Terminals 71 | . 4 . . . 2 12 8 . 17 . . . . 5 . . . . 9 4 . 5 5 Fabricators 18 | . . . . . . . . . 7 . . . . 8 . . . . 1 . . 2 . Repair Stations 4 | . . . . . . . 4 . . . . . . . . . . . . . . . . Recycling Units . | . . . . . . . . . . . . . . . . . . . . . . . . Scanalyzers . | . . . . . . . . . . . . . . . . . . . . . . . . Garrison Access . | . . . . . . . . . . . . . . . . . . . . . . . . Terminal Hacks 84 | . . . 1 . . . 5 . 6 . 1 46 . 4 . . 10 . 6 2 . 1 2 Record 48 | . . . . . . . 2 . . . . 34 . . . . 8 . 1 1 . . 2 Part Schematic 6 | . . . . . . . 1 . 1 . . 4 . . . . . . . . . . . Robot Schematic 1 | . . . . . . . . . . . . . . . . . . . . 1 . . . Robot Analysis 6 | . . . . . . . . . 2 . . 4 . . . . . . . . . . . Prototype ID Bank 4 | . . . . . . . . . . . . 4 . . . . . . . . . . . Open Door 6 | . . . . . . . 2 . . . 1 . . . . . 2 . 1 . . . . Level Access Points 2 | . . . . . . . . . . . . . . 1 . . . . 1 . . . . Branch Access Points 2 | . . . . . . . . . . . . . . 1 . . . . 1 . . . . Emergency Access Points 1 | . . . . . . . . . . . . . . . . . . . . . . 1 . Unreport Threat 3 | . . . . . . . . . 1 . . . . . . . . . 2 . . . . Recall Extermination 1 | . . . . . . . . . . . . . . 1 . . . . . . . . . Recall Assault 2 | . . . . . . . . . 2 . . . . . . . . . . . . . . Zone Layout 1 | . . . . . . . . . . . . . . 1 . . . . . . . . . EX-Prototype ID Bank 1 | . . . 1 . . . . . . . . . . . . . . . . . . . . Fabricator Hacks 13 | . . . . . . . . . 6 . . . . 6 . . . . 1 . . . . Network Status 5 | . . . . . . . . . 2 . . . . 3 . . . . . . . . . Load Schematic 3 | . . . . . . . . . 1 . . . . 1 . . . . 1 . . . . Build 5 | . . . . . . . . . 3 . . . . 2 . . . . . . . . . Repair Station Hacks 4 | . . . . . . . 4 . . . . . . . . . . . . . . . . Scan Component 2 | . . . . . . . 2 . . . . . . . . . . . . . . . . Repair 2 | . . . . . . . 2 . . . . . . . . . . . . . . . . Recycling Unit Hacks . | . . . . . . . . . . . . . . . . . . . . . . . . Scanalyzer . | . . . . . . . . . . . . . . . . . . . . . . . . Garrison Access Hacks . | . . . . . . . . . . . . . . . . . . . . . . . . Unauthorized Hacks 8 | . 1 . . . 1 2 . . 2 . . . . 2 . . . . . . . . . Terminals 6 | . 1 . . . 1 2 . . 2 . . . . . . . . . . . . . . Assimilate 1 | . . . . . . 1 . . . . . . . . . . . . . . . . . Botnet 2 | . . . . . . . . . 2 . . . . . . . . . . . . . . Detonate 1 | . . . . . . 1 . . . . . . . . . . . . . . . . . Operators 2 | . 1 . . . 1 . . . . . . . . . . . . . . . . . . Fabricators 2 | . . . . . . . . . . . . . . 2 . . . . . . . . . Prioritize 1 | . . . . . . . . . . . . . . 1 . . . . . . . . . Siphon 1 | . . . . . . . . . . . . . . 1 . . . . . . . . . Repair Stations . | . . . . . . . . . . . . . . . . . . . . . . . . Recycling Units . | . . . . . . . . . . . . . . . . . . . . . . . . Scanalyzers . | . . . . . . . . . . . . . . . . . . . . . . . . Garrison Access . | . . . . . . . . . . . . . . . . . . . . . . . . Data Cores Recovered . | . . . . . . . . . . . . . . . . . . . . . . . . Used . | . . . . . . . . . . . . . . . . . . . . . . . . Hacking Detections 22 | . 1 . . . 1 2 3 . 4 . . . . 1 . . . . 4 1 . 2 3 Full Trace Events 1 | . . . . . . . . . . . . . . 1 . . . . . . . . . Feedback Events . | . . . . . . . . . . . . . . . . . . . . . . . . Feedback Blocked . | . . . . . . . . . . . . . . . . . . . . . . . . Robot Schematics Acquired 1 | . . . . . . . . . . . . . . . . . . . . 1 . . . Robots Built . | . . . . . . . . . . . . . . . . . . . . . . . . Matter . | . . . . . . . . . . . . . . . . . . . . . . . . Time . | . . . . . . . . . . . . . . . . . . . . . . . . Total Robot Build Rating . | . . . . . . . . . . . . . . . . . . . . . . . . Part Schematics Acquired 6 | . . . . . . . 1 . 1 . . 4 . . . . . . . . . . . Parts Built 5 | . . . . . . . . . 3 . . . . 2 . . . . . . . . . Matter 979 | . . . . . . . . . 570 . . . . 409 . . . . . . . . . Time 460 | . . . . . . . . . 285 . . . . 175 . . . . . . . . . Total Part Build Rating 29 | . . . . . . . . . 15 . . . . 14 . . . . . . . . . Parts Repaired 2 | . . . . . . . 2 . . . . . . . . . . . . . . . . Time 58 | . . . . . . . 58 . . . . . . . . . . . . . . . . Parts Recycled . | . . . . . . . . . . . . . . . . . . . . . . . . Recycled Matter . | . . . . . . . . . . . . . . . . . . . . . . . . Retrieved Matter . | . . . . . . . . . . . . . . . . . . . . . . . . Retrieved Components . | . . . . . . . . . . . . . . . . . . . . . . . . Parts Scanalyzed . | . . . . . . . . . . . . . . . . . . . . . . . . Part Schematics Acquired . | . . . . . . . . . . . . . . . . . . . . . . . . Parts Damaged . | . . . . . . . . . . . . . . . . . . . . . . . . Bothacking | -11 -10 -10 -10 -9 -8 -7 -7 -7 -5 -5 -5 -5 -4 -4 -4 -4 -4 -3 -3 -3 -2 -1 -1 ------------ Run | Scr Mat Min Exi Min Mat Fac Sto Rec Fac Upp Upp Zhi Pro Fac Upp Upp War Pro Res Qua Res Acc Com Used RIF Installer . | . . . . . . . . . . . . . . . . . . . . . . . . Robots Hacked . | . . . . . . . . . . . . . . . . . . . . . . . . Non-combat . | . . . . . . . . . . . . . . . . . . . . . . . . Combat . | . . . . . . . . . . . . . . . . . . . . . . . . Robot Hacks Applied . | . . . . . . . . . . . . . . . . . . . . . . . . Relay Couplers Released . | . . . . . . . . . . . . . . . . . . . . . . . . Robots Rewired 8 | . . . . . . . . 6 . . . . . . 2 . . . . . . . . Allies Hacked . | . . . . . . . . . . . . . . . . . . . . . . . . Hacks Repelled . | . . . . . . . . . . . . . . . . . . . . . . . . Allies | -11 -10 -10 -10 -9 -8 -7 -7 -7 -5 -5 -5 -5 -4 -4 -4 -4 -4 -3 -3 -3 -2 -1 -1 -------- Run | Scr Mat Min Exi Min Mat Fac Sto Rec Fac Upp Upp Zhi Pro Fac Upp Upp War Pro Res Qua Res Acc Com Total Allies 10 | . . . . 1 . 1 . 6 . . . . . . 2 . . . . . . . . Largest Group 6 | . . . . 1 1 1 . 6 . . . . . . 2 . . . . . . . . Highest-Rated Group 186 | . . . . 31 31 10 . 186 . . . . . . 101 . . . . . . . . Highest-Rated Ally 52 | . . . . 31 31 10 . 37 . . . . . . 52 . . . . . . . . Total Orders 1 | . . . . . . . . . . . . . . . 1 . . . . . . . . ROAM 1 | . . . . . . . . . . . . . . . 1 . . . . . . . . Ally Attacks 33 | . . . . . 9 . . 21 . . . . . . 3 . . . . . . . . Total Damage 580 | . . . . . 172 . . 361 . . . . . . 47 . . . . . . . . Kills 11 | . . . . . 2 . . 8 . . . . . . 1 . . . . . . . . Allies Corrupted . | . . . . . . . . . . . . . . . . . . . . . . . . Allies Melted . | . . . . . . . . . . . . . . . . . . . . . . . . Intel | -11 -10 -10 -10 -9 -8 -7 -7 -7 -5 -5 -5 -5 -4 -4 -4 -4 -4 -3 -3 -3 -2 -1 -1 ------- Run | Scr Mat Min Exi Min Mat Fac Sto Rec Fac Upp Upp Zhi Pro Fac Upp Upp War Pro Res Qua Res Acc Com Robot Analysis Total 6 | . . . . . . . . . 2 . . 4 . . . . . . . . . . . Derelict Logs Recovered 9 | . . 1 . . . . . . . 2 2 . 1 . 1 2 . . . . . . . Drone Launches . | . . . . . . . . . . . . . . . . . . . . . . . . Drone Recoveries . | . . . . . . . . . . . . . . . . . . . . . . . . Exploration | -11 -10 -10 -10 -9 -8 -7 -7 -7 -5 -5 -5 -5 -4 -4 -4 -4 -4 -3 -3 -3 -2 -1 -1 ------------- Run | Scr Mat Min Exi Min Mat Fac Sto Rec Fac Upp Upp Zhi Pro Fac Upp Upp War Pro Res Qua Res Acc Com Turns Passed 8056 | 55 370 286 482 313 289 398 298 134 888 84 201 98 111 795 238 179 233 274 757 215 810 371 177 Spaces Moved 10711 | 42 231 170 396 200 156 699 481 190 1149 239 490 204 273 626 404 466 514 205 1009 430 1472 532 133 Core 427 | 9 . . . . . . . . . . . . . . . . . . . 11 261 31 115 Treads . | . . . . . . . . . . . . . . . . . . . . . . . . Legs 1202 | 33 231 170 396 200 156 16 . . . . . . . . . . . . . . . . . Wheels . | . . . . . . . . . . . . . . . . . . . . . . . . Hover 18 | . . . . . . . . . . . . . . . . . . . . . . . 18 Flight 9064 | . . . . . . 683 481 190 1149 239 490 204 273 626 404 466 514 205 1009 419 1211 501 . Fastest Speed 32 | 50 120 120 120 120 120 37 32 32 32 34 34 34 32 32 40 35 35 35 34 40 40 40 50 Average Speed 47 | 109 120 120 120 120 120 38 33 32 32 34 34 34 33 39 40 35 35 35 38 40 42 40 78 Slowest Speed 350 | 120 120 120 120 120 120 120 37 32 34 34 34 34 34 40 40 40 35 35 40 50 250 50 350 Overloaded Moves . | . . . . . . . . . . . . . . . . . . . . . . . . Propulsion Burnouts . | . . . . . . . . . . . . . . . . . . . . . . . . Robots Hopped 84 | . . . . . . 4 7 3 18 . 3 . . 3 1 5 1 . 6 12 17 4 . Cave-ins Triggered . | . . . . . . . . . . . . . . . . . . . . . . . . Teleports 1 | . . . . . . . . . . . . . . . . . . . . . . 1 . Exploration Rate (%) 40 | 3 46 36 61 26 19 16 58 48 29 40 65 62 41 9 56 75 79 36 28 71 41 15 7 Regions Visited 23 Branch Regions 15 Pre-discovered Areas 6 | . . . . 1 . . . . . . . 3 . . . 2 . . . . . . . Known Exits Taken 17 | . . . . . . 1 1 1 1 1 1 1 1 1 1 1 1 1 1 1 1 1 . Unknown Exits Taken 6 | 1 1 1 1 1 1 . . . . . . . . . . . . . . . . . . Scrap Searched 15 | . . 1 . 1 . . . . . 1 2 . 2 . 4 2 . 2 . . . . . Spaces Dug 2 | . . . . . . . . . . . . . . . . . . . . 2 . . . Terrain Destroyed 37 | . . . . . . . . . 25 . . . . . . . . . . 2 7 3 . Melee . | . . . . . . . . . . . . . . . . . . . . . . . . Projectile 12 | . . . . . . . . . . . . . . . . . . . . 2 7 3 . AOE 25 | . . . . . . . . . 25 . . . . . . . . . . . . . . Terrain Rammed . | . . . . . . . . . . . . . . . . . . . . . . . . Walls Destroyed . | . . . . . . . . . . . . . . . . . . . . . . . . Machines Disabled . | . . . . . . . . . . . . . . . . . . . . . . . . Actions | -11 -10 -10 -10 -9 -8 -7 -7 -7 -5 -5 -5 -5 -4 -4 -4 -4 -4 -3 -3 -3 -2 -1 -1 --------- Run | Scr Mat Min Exi Min Mat Fac Sto Rec Fac Upp Upp Zhi Pro Fac Upp Upp War Pro Res Qua Res Acc Com Total 13270 | 48 278 202 403 265 234 807 584 259 1599 241 503 230 291 1167 446 471 564 406 1349 456 1601 660 206 Wait 2046 | . . 5 . 60 57 85 72 . 397 2 . 13 10 526 9 7 38 200 309 24 79 90 63 Move 10528 | 41 230 169 395 199 155 690 466 183 1114 238 483 203 272 619 401 455 511 204 996 408 1440 523 133 Hop 77 | . . . . . . 4 7 3 17 . 3 . . 3 1 5 1 . 6 9 14 4 . Pick Up 37 | 1 9 . 2 2 2 1 4 . 3 . . 1 . . 1 1 4 . 1 1 3 1 . Fast Attach 114 | 6 3 1 . . . 6 8 1 7 . 5 7 4 8 3 . 5 1 14 2 28 1 4 Attach 32 | . 1 . . . . 5 4 . 2 . . 1 1 3 1 2 1 . . 2 3 5 1 Detach 13 | . . . . . . . 3 . 1 . . . 1 3 . . . . . 1 3 1 . Swap 17 | . 1 1 3 . 2 . 1 . 4 . . . . . 1 . . . 1 1 1 1 . Drop 100 | . 7 1 3 . 4 7 9 . 7 1 3 5 3 5 3 . 4 1 13 4 13 3 4 Fire 180 | . 27 25 . 4 14 9 10 . 20 . 9 . . . 19 1 . . 9 4 15 14 . Melee . | . . . . . . . . . . . . . . . . . . . . . . . . Ram 21 | . . . . . . . . . 1 . . . . . . . . . . . 2 17 1 Kick . | . . . . . . . . . . . . . . . . . . . . . . . . Crush . | . . . . . . . . . . . . . . . . . . . . . . . . Escape Stasis 26 | . . . . . . . . . 26 . . . . . . . . . . . . . . Rewire 79 | . . . . . . . . 72 . . . . . . 7 . . . . . . . . Trap . | . . . . . . . . . . . . . . . . . . . . . . . . Miscellaneous . | . . . . . . . . . . . . . . . . . . . . . . . . Route ------- -11/Scrapyard -10/Materials (discovered 2 exits: [*Mat] / [*Min]) -10/Mines (discovered 2 exits: [*Mat] / *Exi) -10/Exiles -9/Mines -8/Materials -7/Factory -7/Storage -7/Recycling -5/Factory -5/Upper Caves -5/Upper Caves -5/Zhirov -4/Proximity Caves -4/Factory (discovered 7 exits: Res x4 / *Upp x2 / Arm) -4/Upper Caves -4/Upper Caves (discovered 2 exits: *Res / *War) -4/Warlord -3/Proximity Caves -3/Research (discovered 5 exits: Res x3 / *Qua x2) -3/Quarantine -2/Research (discovered 3 exits: *Acc x2 / *Tes) -1/Access -1/Command History --------- Turn | Location | Event 10 | -11/Scrapyard | Discovered new exit (range 14) 56 | -11/Scrapyard | Entered Materials 127 | -10/Materials | Discovered new exit (range 11) 302 | -10/Materials | Build established: Mutant 386 | -10/Materials | Discovered new exit (range 16) 426 | -10/Materials | Entered Mines 435 | -10/Mines | Learned Materials emergency access door positions 608 | -10/Mines | Deemed a non-threat by the Exiles lab entrance 626 | -10/Mines | Discovered new exit (range 5) 677 | -10/Mines | Core integrity fell below 50% 707 | -10/Mines | Discovered new exit (range 5) 712 | -10/Mines | Entered Exiles 740 | -10/Exiles | Met 8R-AWN 763 | -10/Exiles | Met EX-HEX 795 | -10/Exiles | Met EX-BIN 808 | -10/Exiles | Aligned with FarCom system 810 | -10/Exiles | Given EX-Vault access code 841 | -10/Exiles | Opened EX-Vault 870 | -10/Exiles | Warned to stay clear of 0b10 Research branches 911 | -10/Exiles | Met EX-DEC 1072 | -10/Exiles | Found Superbattery 1178 | -10/Exiles | Discovered new exit (range 15) 1194 | -10/Exiles | Left Exiles lab with Superbattery 1194 | -10/Exiles | Entered Mines 1195 | -9/Mines | Assembled infested the area 1200 | -9/Mines | Assisted by a Guerilla fighting off Assembled 1201 | -9/Mines | Escorted by a lone wolf Derelict 1215 | -9/Mines | Discovered new exit (range 5) 1221 | -9/Mines | Learned location of Storage (-7) 1397 | -9/Mines | A weapon hastily lodged in a ceiling crevice suddenly fell to the ground 1507 | -9/Mines | Entered Materials 1507 | -8/Materials | Accompanied by 1 ally 1507 | -8/Materials | Evolved 4 slots: Utility x4 1657 | -8/Materials | Discovered new exit (range 11) 1796 | -8/Materials | Entered Factory 1796 | -7/Factory | Evolved 2 slots: Utility x2 1960 | -7/Factory | Discovered new exit (range 10) 1987 | -7/Factory | Identified exit to Storage 2194 | -7/Factory | Entered Storage 2301 | -7/Storage | Repaired Plasma Cutter 2329 | -7/Storage | Repaired Flight Unit 2474 | -7/Storage | Found Prototype Launcher 2474 | -7/Storage | Identified Gui. Missile Launcher 2491 | -7/Storage | Used back door to open Recycling access 2491 | -7/Storage | Discovered new exit (range 5) 2492 | -7/Storage | Identified exit to Recycling 2492 | -7/Storage | Entered Recycling 2542 | -7/Recycling | Spotter reported a threat 2550 | -7/Recycling | Spotter reported a threat 2550 | -7/Recycling | Spotter reported a threat 2574 | -7/Recycling | Spotter reported a threat 2574 | -7/Recycling | Spotter reported a threat 2577 | -7/Recycling | Spotter reported a threat 2591 | -7/Recycling | Spotter reported a threat 2612 | -7/Recycling | Spotter reported a threat 2615 | -7/Recycling | Spotter reported a threat 2622 | -7/Recycling | Discovered new exit (range 15) 2626 | -7/Recycling | Identified exit to Factory 2626 | -7/Recycling | Entered Factory 2626 | -5/Factory | Evolved 4 slots: Utility x4 2790 | -5/Factory | Fabricated Imp. Hacking Suite (x1) 2887 | -5/Factory | Fabricated Imp. Hacking Suite (x1) 2913 | -5/Factory | Local fabrication network quarantined 2926 | -5/Factory | First assault squad dispatched 2930 | -5/Factory | Build established: Hacker-Sprinter 2983 | -5/Factory | Fabricated Imp. Hacking Suite (x1) 3338 | -5/Factory | Build established: Wizard-Sprinter 3378 | -5/Factory | Central database locked down 3508 | -5/Factory | Discovered new exit (range 13) 3512 | -5/Factory | Identified exit to Upper Caves 3514 | -5/Factory | Entered Upper Caves 3517 | -5/Upper Caves | Learned 8 Factory zone layouts 3540 | -5/Upper Caves | Learned Factory interactive machine intel 3594 | -5/Upper Caves | Discovered new exit (range 12) 3598 | -5/Upper Caves | Identified exit to Upper Caves 3598 | -5/Upper Caves | Entered another Upper Caves area 3633 | -5/Upper Caves | Learned Factory machine intel 3665 | -5/Upper Caves | Build established: Wizard-Mutant 3732 | -5/Upper Caves | Attracted the attention of an 0b10 checkpoint 3732 | -5/Upper Caves | Learned Factory garrison access intel 3734 | -5/Upper Caves | Spotted B-75 Beast 3777 | -5/Upper Caves | Encountered a Warlord checkpoint 3797 | -5/Upper Caves | Discovered new exit (range 6) 3798 | -5/Upper Caves | Identified exit to Zhirov 3799 | -5/Upper Caves | Entered Zhirov 3799 | -5/Zhirov | Discovered new exit (range 4) 3812 | -5/Zhirov | Learned location of Quarantine (-3) 3812 | -5/Zhirov | Learned location of Testing (-2) 3812 | -5/Zhirov | Learned location of Command (-1) 3821 | -5/Zhirov | Found Alien Artifact 3821 | -5/Zhirov | Identified Integrated Dissipator 3821 | -5/Zhirov | Installed Integrated Dissipator, increased core heat dissipation (+20) 3864 | -5/Zhirov | Found Alien Artifact 3896 | -5/Zhirov | Identified exit to Proximity Caves 3897 | -5/Zhirov | Entered Proximity Caves 3950 | -4/Proximity Caves | Learned location of 1 exit from Upper Caves 3998 | -4/Proximity Caves | Spotted B-86 Titan 4006 | -4/Proximity Caves | Discovered new exit (range 8) 4008 | -4/Proximity Caves | Identified exit to Factory 4008 | -4/Proximity Caves | Entered Factory 4008 | -4/Factory | Evolved 2 slots: Utility x2 4009 | -4/Factory | Identified exit to Research 4009 | -4/Factory | Identified exit to Upper Caves 4010 | -4/Factory | Loaded intel: 278 machine locations 4011 | -4/Factory | Loaded intel: 46 interactive machine locations 4012 | -4/Factory | Loaded intel: 4 garrison access locations 4037 | -4/Factory | Discovered exit to Upper Caves (range 11) 4038 | -4/Factory | Identified exit to Armory 4357 | -4/Factory | Fabricated Imp. Arc Thrower (x1) 4403 | -4/Factory | Local fabrication network quarantined 4419 | -4/Factory | Fabricated Imp. Arc Thrower (x1) 4803 | -4/Factory | Entered Upper Caves 4804 | -4/Upper Caves | Identified exit to Upper Caves 4864 | -4/Upper Caves | Learned Research emergency access door positions 5041 | -4/Upper Caves | Entered another Upper Caves area 5043 | -4/Upper Caves | Learned location of Armory (-4) 5049 | -4/Upper Caves | Spotted B-86 Titan 5055 | -4/Upper Caves | Discovered exit to Research (range 14) 5104 | -4/Upper Caves | Lost 4 parts (1n1u2w) 5215 | -4/Upper Caves | Discovered new exit (range 12) 5219 | -4/Upper Caves | Identified exit to Warlord 5220 | -4/Upper Caves | Entered Warlord 5324 | -4/Warlord | Met Warlord 5338 | -4/Warlord | Found Signal Generator 5349 | -4/Warlord | Visited the Vortex Lab 5349 | -4/Warlord | Warlord's base attacked by MAIN.C 5351 | -4/Warlord | Found Prototype Energy Gun 5403 | -4/Warlord | Opened side exit 5450 | -4/Warlord | Discovered new exit (range 11) 5452 | -4/Warlord | Identified exit to Proximity Caves 5453 | -4/Warlord | Entered Proximity Caves 5613 | -3/Proximity Caves | Received a Behemoth hack from an annoying Tinkerer 5725 | -3/Proximity Caves | Discovered exit to Research (range 8) 5727 | -3/Proximity Caves | Entered Research 5727 | -3/Research | Evolved 2 slots: Utility x2 5879 | -3/Research | Identified exit to Quarantine 5879 | -3/Research | Identified exit to Research 6411 | -3/Research | Spotted B-86 Titan 6484 | -3/Research | Entered Quarantine 6485 | -3/Quarantine | Maximum security lockdown engaged 6497 | -3/Quarantine | Found Alien Impact Weapon 6497 | -3/Quarantine | Identified Core Stripper 6511 | -3/Quarantine | Found Alien Artifact 6678 | -3/Quarantine | Lost 3 parts (3u) 6688 | -3/Quarantine | Discovered exit to Research (range 19) 6694 | -3/Quarantine | Core integrity fell below 50% 6695 | -3/Quarantine | Spotted Alpha 7 6698 | -3/Quarantine | Core integrity fell below 20% 6699 | -3/Quarantine | Entered Research 6699 | -2/Research | Warlord forces began assault on 0b10 6699 | -2/Research | Evolved 2 slots: Utility x2 6727 | -2/Research | Lost 10 parts (2n8u) 6809 | -2/Research | Research machine network offline 6882 | -2/Research | Spotted B-90 Cyclops 6906 | -2/Research | Spotted B-90 Cyclops 6915 | -2/Research | Discovered new exit (range 6) 6968 | -2/Research | Found Prototype Processor 6968 | -2/Research | Identified Exp. Signal Interpreter 6974 | -2/Research | Identified exit to Testing 6989 | -2/Research | Build established: Mutant 7065 | -2/Research | Found Prototype Launcher 7065 | -2/Research | Identified Gui. Micro-nuke Launcher 7069 | -2/Research | Warlord destroyed during the assault 7142 | -2/Research | Spotted Striker 7154 | -2/Research | Discovered new exit (range 20) 7159 | -2/Research | Spotted Executioner 7200 | -2/Research | Spotted Executioner 7214 | -2/Research | Borebot progress halted 7219 | -2/Research | Found Prototype Processor 7219 | -2/Research | Identified Exp. Core Analyzer 7258 | -2/Research | Spotted Striker 7279 | -2/Research | Spotted Executioner 7296 | -2/Research | Found Prototype Processor 7296 | -2/Research | Identified Exp. Targeting Computer 7336 | -2/Research | Borebot progress halted 7397 | -2/Research | Discovered new exit (range 14) 7399 | -2/Research | Spotted Striker 7399 | -2/Research | Spotted Striker 7435 | -2/Research | Destroyed Striker 7443 | -2/Research | Identified exit to Access 7456 | -2/Research | Destroyed God Mode 7459 | -2/Research | Build established: Scavenger-Mutant 7487 | -2/Research | Attacked by Warlord forces 7502 | -2/Research | Spotted WZ-12Q(H) 7509 | -2/Research | Entered Access 7509 | -1/Access | Evolved 2 slots: Utility x2 7731 | -1/Access | Spotted B-99 Colossus 7768 | -1/Access | Spotted B-99 Colossus 7786 | -1/Access | First assault squad dispatched 7836 | -1/Access | Spotted B-99 Colossus 7841 | -1/Access | Spotted B-99 Colossus 7845 | -1/Access | Identified Transdimensional Reconstructor 7845 | -1/Access | Warped through subspace 7877 | -1/Access | Identified Terrabomb 7877 | -1/Access | Used Terrabomb 7877 | -1/Access | Discovered new exit (range 6) 7880 | -1/Access | Identified exit to Command 7880 | -1/Access | Entered Command 7910 | -1/Command | Lost 12 parts (1p1n8u2w) 8026 | -1/Command | Core integrity fell below 50% 8052 | -1/Command | Core integrity fell below 20% 8057 | -1/Command | Destroyed by H-88 Terminator with KE Penetrator Last Messages --------------- 08031_ Dropped System Restoration Module. 08032_ Dropped Lgt. Antimatter Reactor. 08033_ Dropped System Restoration Module. 08033_ System Guard destroyed. 08033_ Slammed into G-73 Enforcer. 08033_ Destabilizing: System interference. 08033_ Exp. Signal Interpreter temporarily disabled. 08033_ Adv. Visual Processing Unit temporarily disabled. 08033_ Exp. Signal Interpreter temporarily disabled. 08036_ Acquired Antigrav Array. 08044_ Slug penetrates R-10 Processor. 08048_ Slug penetrates Wall. 08048_ Dropped Antigrav Array. 08051_ Penetrated by Slug. 08051_ Slug penetrates G-73 Enforcer. 08051_ Penetrated by Slug. 08051_ Broken Adv. Targeting Computer destroyed. 08054_ Penetrated by Slug. 08056_ R-10 Processor collects Lgt. Antimatter Reactor. 08057_ Penetrated by Slug. Map ----- +----------------------------------------------------+ | | | | | | | | | | | | | | | | | | | | | | | | | | | | | | | | | ??????????????????????????????########???????????? | | ?????????????????????????????? #????s?????? | | ??????????????????????????????? ???s?s?????? | | ??????????????????????????????? ????s??????? | | ???????????????????????????????? ????????????? | | ???????????????????????????????? ????????????? | | ????????????????????????????????? ?????????????? | | ????????????????????????????????? ????????#+#### | | ?????????????????#################+##??????? | | ????????????????# @ ######## #? | | ?????????????????+##### #? | | ??????????????????????# #? | | ??????????????????????# #? | | ??????????????????????# ## | | ??????????????????????# g = | | ??????????????????????# | | ??????????????????????# gg = | | ??????################# g ## | | ??????# !!! # ###############? | | ??????# ! # #??????????????? | | ??????# !!! +! hh #??????????????? | | ??????# #! R #??????????????? | | ??????# "" ###/###+###+#??????????????? | | ??????# """" ## #??????????????? | | ??????# """" ## #??????????????? | | ??????# "" ## #??????????????? | | ??????# ## #??????????????? | | ??????# ## #??????????????? | | ??????########/######### #??????????????? | | ############# ####################??????????????? | | # """ # # #?????????????????????????? | | # ""T"" # # #?????????????????????????? | | # "" "" # #" #?????????????????????????? | | # + #"" #?????????????????????????? | +----------------------------------------------------+ Best States ------------- Heat Dissipation 98 Energy Generation 29 Energy Capacity 2340 Matter Stores 300 Matter Capacity 300 Sight Range 20 Terrain Scan Density 10 ECM Strength 2 Jamming Range 16 Cloak Strength 3 Additional Mass Support 21 Corruption Prevention 12 Armor Coverage 150 Power Shielding 66 Utility Shielding 33 Weapon Cycling 20 Evasion (%) 72 Targeting Accuracy 34 Target Analysis 6 Core Analysis 15 Armor Integrity Analysis 66 Particle Charging 30 Offensive Hacking 58 Defensive Hacking 34 Item Schematics ----------------- Imp. Hacking Suite | -7/Storage | Hacked Imp. System Shield | -5/Factory | Hacked Assault Drone Bay | -5/Zhirov | Free Exp. Heat Sink | -5/Zhirov | Free Exp. Optical Array | -5/Zhirov | Free Imp. Arc Thrower | -5/Zhirov | Free Robot Schematics ------------------ M-30 Cleanser | -3/Quarantine | Hacked Fabricated ------------ Imp. Hacking Suite | x1 | -5/Factory Imp. Hacking Suite | x1 | -5/Factory Imp. Hacking Suite | x1 | -5/Factory Imp. Arc Thrower | x1 | -4/Factory Imp. Arc Thrower | x1 | -4/Factory Alien Tech Used ----------------- Integrated Dissipator Core Stripper Transdimensional Reconstructor Terrabomb Achievements -------------- None Challenges ------------ None Game ------ Seed SlugLightpackMace Manual? 0 Play Time 01:36:16 Cumulative 189.8 hours Start 2021.05.07 @ 15:18:55 End 2021.05.07 @ 18:55:08 Sessions 3 Manual Loads 0 Difficulty Rogue Special Mode None Game No. 372 Rogue 218 Adventurer 148 Explorer 6 Win Type - Total 3 Types 3/0/0/0/0/0/0/0/0 Lore% 72 Gallery% 83 Achievement% 60 Wizard Run 0 Options --------- ASCII 0 Keyboard 0 Movement Numpad Keybinds 0 Fullscreen 1 Font 18/CogNarrow Map View 76x50 Tactical HUD 1 Map Filters NONE Filters NONE Steam 1 RUN: 84c64ec9-3225-4912-acce-bac8c65a0097